bitfinex-derivatives/quotes_ETHF0:USTF0_20250404
["timestamp","ask_amount","ask_price","bid_price","bid_amount"]
[1743739849071,2.65013,1788.9,1788.8,3.74938528]
[1743739850271,1.5317,1788.9,1788.8,4.86787528]
[1743739851575,1.5317,1788.9,1788.8,3.74938528]
[1743739851576,2.65013,1788.9,1788.8,3.74938528]
[1743739851782,2.65013,1788.9,1788.8,4.86787528]
[1743739852677,2.65013,1788.9,1788.8,3.74938528]
[1743739852879,2.65013,1788.9,1788.8,4.86787528]
[1743739853077,2.65013,1788.9,1788.8,3.74938528]
[1743739854677,2.65013,1788.9,1788.8,0.00838528]
[1743739860374,5.85793,1788.9,1788.8,0.00838528]
[1743739860579,2.79623,1788.8,1788.2,4.32662]
[1743739860781,1.11874,1788.4,1788.3,3.741]
[1743739861077,1.1188,1788.3,1788.2,6.38636]
[1743739861275,1.1188,1788.3,1788.2,3.741]
[1743739861670,1.11886,1788.3,1788.2,1.11885]
[1743739861882,2.65386,1788.3,1788.1,7.11165528]
[1743739862182,2.65385,1788.3,1788.1,5.99278528]
[1743739862380,2.65385,1788.3,1788.2,1.4116]
[1743739863279,2.65385,1788.3,1788.2,2.53046]
[1743739863584,2.61157528,1788.4,1788.2,2.53046]
[1743739863783,2.61152528,1788.4,1788.3,1.4116]
[1743739864082,2.97018528,1788.4,1788.3,2.5304]
[1743739864299,4.08892528,1788.4,1788.3,1.4116]
[1743739864673,2.97018528,1788.4,1788.3,1.4116]
[1743739864871,4.08892528,1788.4,1788.3,1.4116]
[1743739866982,1.11886,1788.2,1788.1,3.21618528]
[1743739867284,1.11886,1788.2,1788.1,4.33511528]
[1743739867480,1.11886,1788.2,1788.1,3.21618528]
[1743739867681,2.56641,1788.3,1788.1,4.64388528]
[1743739868076,2.59386,1788.2,1788.1,0.00838528]
[1743739868580,5.09386,1788.2,1788.1,0.00838528]
[1743739870890,2.59386,1788.2,1788.1,0.00838528]
[1743739871082,5.09386,1788.2,1788.1,0.00838528]
[1743739872089,2.59386,1788.2,1788.1,0.00838528]
[1743739874097,2.59386,1788.2,1788.1,1.12731528]
[1743739874390,2.59386,1788.2,1788.1,1.41178528]
[1743739875090,0.00838528,1788.4,1788.3,1.1188]
[1743739875286,0.00838528,1788.4,1788.3,4.8608]
[1743739875500,0.00838528,1788.4,1788.3,6.2642]
[1743739876891,1.12712528,1788.4,1788.3,5.1454]
[1743739877794,1.12712528,1788.4,1788.3,6.2642]
[1743739877995,0.00838528,1788.4,1788.3,6.2642]
[1743739878194,1.12712528,1788.4,1788.3,6.2642]
[1743739878393,0.00838528,1788.4,1788.3,6.2642]
[1743739878696,1.12712528,1788.4,1788.3,6.2642]
[1743739879197,1.12712528,1788.4,1788.3,5.1454]
[1743739880091,0.00838528,1788.4,1788.3,6.2642]
[1743739880290,0.00838528,1788.4,1788.3,11.972]
[1743739880797,1.4709,1788.9,1788.3,11.972]
[1743739880997,1.1186,1788.7,1788.5,4.32647]
[1743739881197,1.1186,1788.7,1788.6,5.9584]
[1743739881495,1.11863,1788.6,1788.4,4.86072]
[1743739881695,1.11863,1788.6,1788.4,4.86073]
[1743739881992,1.12698528,1788.7,1788.5,2.57937]
[1743739882199,0.00838528,1788.7,1788.6,3.33501]
[1743739882498,0.00838528,1788.7,1788.6,4.04711]
[1743739885500,21.69562006,1789.3,1789.1,1.11826]
[1743739885799,23.17462006,1789.3,1789.1,1.11826]
[1743739886197,24.29280006,1789.3,1789.1,2.65786]
[1743739886401,1.452,1789.2,1789.1,1.5396]
[1743739886603,1.452,1789.2,1789.0,3.742]
[1743739886803,2.5609,1789.1,1789.0,3.75038528]
[1743739887102,2.5609,1789.1,1789.0,0.00838528]
[1743739887893,4.0129,1789.1,1789.0,0.00838528]
[1743739889402,2.8946,1789.1,1789.0,1.12674528]
[1743739889804,1.452,1789.1,1789.0,1.12674528]
[1743739890102,2.5703,1789.1,1789.0,0.00838528]
[1743739890305,2.5703,1789.1,1789.0,1.12674528]
[1743739891202,2.5703,1789.1,1789.0,0.00838528]
[1743739891804,2.5703,1789.1,1789.0,1.12674528]
[1743739892499,2.5703,1789.1,1789.0,0.00838528]
[1743739894804,1.11859,1788.7,1788.5,3.2078]
[1743739895106,1.11859,1788.7,1788.6,1.11857]
[1743739897805,1.11859,1788.7,1788.5,0.00838528]
[1743739898003,0.6975,1788.6,1788.5,0.00838528]
[1743739898710,1.81611,1788.6,1788.5,0.00838528]
[1743739900507,1.11886,1788.2,1788.1,3.741]
[1743739900910,1.82834,1788.3,1788.1,3.741]
[1743739901210,1.82834,1788.3,1788.1,6.31209]
[1743739901410,1.82834,1788.3,1788.1,7.02449]
[1743739901613,1.11886,1788.2,1788.1,7.02449]
[1743739901914,1.82835,1788.3,1788.1,7.02449]
[1743739902214,1.11886,1788.2,1788.1,7.02449]
[1743739902416,1.82834,1788.3,1788.1,7.02449]
[1743739902708,0.00838528,1788.4,1788.3,1.1188]
[1743739903114,0.00838528,1788.4,1788.3,3.6188]
[1743739903315,0.00838528,1788.4,1788.3,5.8488]
[1743739904723,3.9453,1788.8,1788.7,1.11855]
[1743739905223,5.06379,1788.8,1788.7,1.11855]
[1743739905419,0.7375,1788.8,1788.7,1.11855]
[1743739905624,0.7337,1788.9,1788.8,1.11849]
[1743739905922,1.85213,1788.9,1788.7,2.51122]
[1743739906323,0.7337,1788.9,1788.8,1.11849]
[1743739907026,2.1985,1788.9,1788.8,1.11849]
[1743739907224,0.00838528,1789.0,1788.9,1.11843]
[1743739907424,0.00838528,1789.0,1788.9,2.54073]
[1743739907624,0.00838528,1789.0,1788.9,6.28173]
[1743739908723,0.00838528,1789.0,1788.9,7.05013]
[1743739911529,0.00838528,1789.0,1788.9,9.55013]
[1743739913031,1.5218,1789.2,1789.1,1.1183]
[1743739914431,1.5218,1789.2,1789.1,2.6466]
[1743739915728,1.5218,1789.2,1789.1,1.1183]
[1743739917029,1.5218,1789.2,1789.1,2.6202]
[1743739921739,2.64004,1789.2,1789.1,2.6202]
[1743739922229,1.5218,1789.2,1789.1,2.6202]
[1743739922736,2.64004,1789.2,1789.1,2.6202]
[1743739923035,2.64004,1789.2,1789.1,1.1183]
[1743739925641,1.5218,1789.2,1789.1,1.1183]
[1743739925935,0.00838528,1789.3,1789.2,1.11824]
[1743739926135,2.55016528,1789.3,1789.2,3.739]
[1743739926538,1.43198528,1789.3,1789.2,4.85724]
[1743739927239,0.00838528,1789.3,1789.2,8.06504]
[1743739927441,0.00838528,1789.3,1789.2,9.49644]
[1743739928137,0.00838528,1789.3,1789.2,11.99644]
[1743739937044,0.00838528,1789.3,1789.2,9.49644]
[1743739940748,0.00838528,1789.3,1789.2,11.99644]
[1743739941545,5.28e-06,1789.3,1789.2,11.99644]
[1743739941746,1.4802,1789.9,1789.8,1.11786]
[1743739942050,1.4802,1789.9,1789.8,4.85586]
[1743739942644,1.4802,1789.9,1789.8,8.06366]
[1743739942839,1.4802,1789.9,1789.8,4.85586]
[1743739943144,1.4802,1789.9,1789.8,8.06366]
[1743739943349,0.0055107,1790.0,1789.9,1.1178]
[1743739943552,0.0055107,1790.0,1789.9,2.6578]
[1743739948550,0.7702,1790.3,1789.9,4.33437]
[1743739948751,3.2078,1791.0,1790.4,1.11749]
[1743739948952,21.69562006,1790.8,1790.7,1.1173]
[1743739950356,21.69562006,1790.8,1790.6,1.12569528]
[1743739950357,22.81287006,1790.8,1790.6,1.12569528]
[1743739951260,1.1173,1790.7,1790.6,0.00838528]
[1743739951750,8.468,1790.7,1789.9,3.9451]
[1743739951956,6.00156,1790.4,1789.9,1.11775]
[1743739952256,1.1178,1789.9,1789.7,4.85487]
[1743739952456,0.7334,1789.8,1789.5,6.9448]
[1743739952658,1.85127,1789.8,1789.5,8.06281]
[1743739952858,1.85127,1789.8,1789.5,6.9448]
[1743739953159,1.85965528,1789.8,1789.5,8.07119528]
[1743739953358,1.85965528,1789.8,1789.5,8.07118528]
[1743739953660,1.11793,1789.7,1789.5,8.07118528]
[1743739954054,1.11794,1789.7,1789.5,8.07118528]
[1743739954260,1.11794,1789.7,1789.5,3.74438528]
[1743739954455,1.11794,1789.7,1789.5,6.95218528]
[1743739954651,1.11794,1789.7,1789.5,8.07023528]
[1743739954958,0.74178528,1789.8,1789.5,8.07022528]
[1743739955149,1.11795,1789.7,1789.5,8.07022528]
[1743739956456,1.85969528,1789.8,1789.5,8.07022528]
[1743739956659,1.11793,1789.7,1789.5,8.07022528]
[1743739957560,3.53646528,1789.8,1789.5,3.21618528]
[1743739957759,1.11799,1789.6,1789.5,3.21618528]
[1743739958255,1.11827,1789.2,1789.0,3.2078]
[1743739958456,1.11827,1789.2,1789.0,4.32615]
[1743739958651,2.79529,1789.4,1789.0,4.32615]
[1743739958652,0.7153,1789.3,1789.0,4.32615]
[1743739958857,1.1183,1789.1,1789.0,4.32615]
[1743739959252,1.1183,1789.1,1789.0,3.2078]
[1743739959454,1.11828,1789.2,1789.0,4.32615]
[1743739959664,1.1183,1789.1,1789.0,3.2078]
[1743739959865,1.11829,1789.2,1789.0,3.2078]
[1743739960166,1.11829,1789.2,1789.0,4.32616]
[1743739960565,0.7153,1789.3,1789.0,3.2078]
[1743739960566,1.1183,1789.1,1789.0,3.2078]
[1743739960865,1.11828,1789.2,1789.0,4.32615]
[1743739961064,1.1183,1789.1,1789.0,3.2078]
[1743739961760,1.1183,1789.1,1788.9,0.00838528]
[1743739961761,1.11836,1789.0,1788.9,0.00838528]
[1743739964169,3.2078,1789.2,1788.9,0.00838528]
[1743739964369,1.11834,1789.1,1788.9,1.12679528]
[1743739964869,1.11836,1789.0,1788.9,0.00838528]
[1743739965771,1.11836,1789.1,1788.9,1.12680528]
[1743739966962,1.443,1789.0,1788.9,1.12680528]
[1743739967159,2.56136,1789.0,1788.9,0.00838528]
[1743739967566,1.443,1789.0,1788.9,1.12681528]
[1743739969073,2.1565,1789.0,1788.9,1.12681528]
[1743739970874,1.11829,1789.2,1789.0,1.11836]
[1743739971267,1.11829,1789.2,1789.1,1.5329]
[1743739971469,2.54679,1789.2,1789.1,1.5329]
[1743739971771,1.4285,1789.2,1789.1,2.6512]
[1743739971974,1.83171,1789.3,1789.1,2.6512]
[1743739972275,1.11824,1789.2,1789.0,1.1183]
[1743739973378,1.11826,1789.2,1788.9,10.49393528]
[1743739973671,2.142,1789.3,1789.1,1.11828]
[1743739973869,3.26023,1789.3,1789.1,1.11828]
[1743739975480,2.142,1789.3,1788.9,10.49393528]
[1743739975675,1.11829,1789.2,1789.0,1.11832]
[1743739976278,2.65439,1789.2,1789.0,1.11832]
[1743739976475,2.65439,1789.2,1788.9,10.49393528]
[1743739976676,2.65439,1789.2,1789.1,1.1183]
[1743739977580,1.11829,1789.2,1789.1,1.1183]
[1743739977877,1.11829,1789.2,1789.0,1.11832]
[1743739978083,1.11829,1789.2,1789.1,1.1183]
[1743739978781,1.11824,1789.2,1789.0,1.11833]
[1743739979083,1.11824,1789.2,1789.1,1.1183]
[1743739980482,2.1059,1789.3,1789.1,1.1183]
[1743739980682,2.1059,1789.3,1789.0,1.11832]
[1743739980884,4.90136,1789.3,1789.0,1.11832]
[1743739981478,1.11824,1789.2,1788.9,10.49395528]
[1743739981880,1.1183,1789.1,1789.0,1.11832]
[1743739982185,1.1183,1789.1,1789.0,4.85536]
[1743739982386,1.1183,1789.1,1789.0,3.737]
[1743739982587,2.6315,1789.1,1789.0,3.737]
[1743739983585,1.11836,1789.0,1788.9,3.96088528]
[1743739983786,3.37696,1789.0,1788.9,3.96088528]
[1743739983988,3.37696,1789.0,1788.9,5.07931528]
[1743739984191,2.2586,1789.0,1788.9,5.07931528]
[1743739985493,3.37696,1789.0,1788.9,5.07931528]
[1743739985691,3.37696,1789.0,1788.9,3.96088528]
[1743739986688,3.37696,1789.0,1788.9,0.75308528]
[1743739988393,3.37696,1789.0,1788.9,0.00838528]
[1743739988685,1.11861,1788.6,1788.5,0.45652341]
[1743739988891,1.11868,1788.5,1788.4,6.28141]
[1743739989086,2.53478,1788.5,1788.4,6.28141]
[1743739989687,1.4161,1788.5,1788.4,6.28141]
[1743739990091,0.00838528,1788.6,1788.5,1.11868]
[1743739990290,0.00838528,1788.6,1788.5,2.54508]
[1743739991097,1.12699528,1788.6,1788.5,2.54508]
[1743739991285,0.00838528,1788.6,1788.5,1.4264]
[1743739991481,1.12699528,1788.6,1788.5,1.4264]
[1743739992693,2.63789528,1788.6,1788.5,1.4264]
[1743739993293,1.51928528,1788.6,1788.5,2.54508]
[1743739993601,2.63789528,1788.6,1788.5,2.54508]
[1743739993891,0.00838528,1788.6,1788.5,2.54508]
[1743739994197,0.00838528,1788.6,1788.5,8.25288]
[1743739999697,0.6984,1789.0,1788.9,1.11843]
[1743739999899,0.6984,1789.0,1788.9,4.85543]
[1743740000596,2.207,1789.0,1788.9,6.29053]
[1743740002287,0.6984,1789.0,1788.9,6.29053]
[1743740002492,0.75928528,1789.1,1789.0,1.11836]
[1743740002493,0.00838528,1789.1,1789.0,1.11836]
[1743740002688,0.00838528,1789.1,1789.0,2.59176]
[1743740003993,2.53088528,1789.1,1789.0,1.4734]
[1743740004401,2.53088528,1789.1,1788.9,4.85537]
[1743740004698,2.1447,1789.0,1788.9,4.85537]
[1743740005602,2.1447,1789.0,1788.9,6.35267]
[1743740006301,2.1447,1789.0,1788.9,8.4421]
[1743740006497,3.26306,1789.0,1788.9,3.737]
[1743740006703,3.26311,1789.0,1788.8,1.11848]
[1743740007000,3.39585,1788.9,1788.7,9.55959]
[1743740007204,1.512,1788.8,1788.7,9.55959]
[1743740007895,0.7654,1788.9,1788.8,1.11849]
[1743740008101,0.7654,1788.9,1788.8,2.59459]
[1743740008702,2.1602,1789.0,1788.9,1.11843]
[1743740008903,3.27856,1789.0,1788.9,2.59453]
[1743740009596,1.11849,1788.9,1788.7,6.9438]
[1743740009900,2.53819,1788.9,1788.7,6.3306]
[1743740010102,2.53819,1788.9,1788.7,1.11853]
[1743740010103,1.11849,1788.8,1788.7,1.11853]
[1743740010297,1.4197,1788.8,1788.7,4.85453]
[1743740011000,1.4197,1788.8,1788.4,64.2788]
[1743740011205,1.4553,1788.7,1788.5,3.736]
[1743740011407,1.4136,1788.6,1788.5,4.85466]
[1743740012009,2.53221,1788.6,1788.5,3.736]
[1743740012807,1.4136,1788.6,1788.5,4.85468]
[1743740013008,1.4136,1788.6,1788.5,6.30078]
[1743740014215,2.53221,1788.6,1788.5,3.736]
[1743740014598,1.4136,1788.6,1788.5,4.85468]
[1743740015912,2.53221,1788.6,1788.5,4.85468]
[1743740016106,1.4136,1788.6,1788.5,4.85468]
[1743740017310,0.7151,1788.7,1788.6,1.11861]
[1743740017610,2.27,1788.9,1788.8,1.11849]
[1743740017809,3.38843,1788.9,1788.8,4.85449]
[1743740018005,3.38843,1788.9,1788.8,3.736]
[1743740018714,5.88843,1788.9,1788.8,3.736]
[1743740019113,3.38843,1788.9,1788.8,3.736]
[1743740020413,3.38843,1788.9,1788.8,1.11849]
[1743740020610,1.1185,1788.8,1788.7,1.11851]
[1743740020811,2.5595,1788.8,1788.7,1.11851]
[1743740022322,1.441,1788.8,1788.7,1.11851]
[1743740022816,2.55949,1788.8,1788.7,1.11851]
[1743740023718,2.55949,1788.8,1788.6,6.32496]
[1743740023915,1.4221,1788.7,1788.6,6.32496]
[1743740024619,2.54065,1788.7,1788.6,6.32496]
[1743740025118,2.54065,1788.7,1788.5,3.2078]
[1743740025119,1.11861,1788.6,1788.5,3.2078]
[1743740025320,3.29051,1788.6,1788.5,4.32648]
[1743740025626,3.29051,1788.6,1788.5,1.11868]
[1743740025828,3.29051,1788.6,1788.4,10.31769]
[1743740026130,3.29051,1788.6,1788.5,1.11868]
[1743740026828,2.1719,1788.6,1788.5,1.11868]
[1743740027024,2.1719,1788.6,1788.5,2.54768]
[1743740028126,5.968,1789.0,1788.6,2.7965]
[1743740028427,3.38687,1789.0,1788.8,1.11849]
[1743740028616,3.38687,1789.0,1788.9,1.429]
[1743740028919,3.38687,1789.0,1788.9,2.54743]
[1743740029321,3.38687,1789.0,1788.9,1.429]
[1743740030328,3.38687,1789.0,1788.9,2.54743]
[1743740030528,3.38687,1789.0,1788.9,1.429]
[1743740030724,0.7645,1789.0,1788.9,2.54743]
[1743740030933,0.00838528,1789.1,1789.0,1.11836]
[1743740031127,0.00838528,1789.1,1789.0,7.09256]
[1743740033231,1.12668528,1789.1,1789.0,7.09256]
[1743740033430,1.12668528,1789.1,1789.0,1.519]
[1743740033631,2.59548528,1789.1,1789.0,3.735]
[1743740035134,2.59548528,1789.1,1789.0,4.85336]
[1743740035434,2.59548528,1789.1,1789.0,3.735]
[1743740035726,1.11836,1789.0,1788.9,1.4681]
[1743740035934,1.11853,1788.8,1788.6,8.06136]
[1743740036126,2.52485,1788.7,1788.6,3.735]
[1743740036728,1.4063,1788.7,1788.6,4.85361]
[1743740036924,1.4063,1788.7,1788.6,6.27231]
[1743740037732,2.52485,1788.7,1788.6,6.27231]
[1743740037929,2.52485,1788.7,1788.6,5.1537]
[1743740038433,2.52485,1788.7,1788.6,6.27231]
[1743740038828,2.52485,1788.7,1788.6,5.1537]
[1743740043529,2.52485,1788.7,1788.6,6.27231]
[1743740044235,1.11855,1788.8,1788.7,1.11855]
[1743740044538,24.90342006,1788.9,1788.8,1.11849]
[1743740045436,26.02185006,1788.9,1788.8,1.11849]
[1743740045634,1.11849,1788.8,1788.7,1.3882]
[1743740046041,3.24819,1788.8,1788.7,2.50675]
[1743740046341,3.2078,1788.9,1788.8,1.11849]
[1743740046533,3.2078,1788.9,1788.8,2.50669]
[1743740046940,4.32623,1788.9,1788.8,2.50669]
[1743740047238,4.32623,1788.9,1788.8,1.3882]
[1743740047636,1.11849,1788.8,1788.6,5.61976]
[1743740047840,2.57099,1788.8,1788.7,1.3973]
[1743740048041,2.57099,1788.8,1788.6,7.709]
[1743740048042,1.83685,1788.7,1788.6,3.735]
[1743740048242,3.28935,1788.7,1788.6,5.1323]
[1743740048736,2.1708,1788.7,1788.6,6.25091]
[1743740049537,1.11844,1788.9,1788.6,5.1323]
[1743740049733,1.83674,1788.9,1788.8,1.11849]
[1743740049928,2.57091,1789.0,1788.8,1.11849]
[1743740050129,3.28921,1789.0,1788.9,2.1488]
[1743740051540,4.96675,1789.0,1788.7,1.1185]
[1743740051742,1.11849,1788.8,1788.7,2.1602]
[1743740052042,1.11855,1788.7,1788.6,3.735]
[1743740052341,1.83885,1788.7,1788.6,3.735]
[1743740052542,1.83885,1788.7,1788.6,4.85361]
[1743740053944,0.7203,1788.7,1788.6,4.85361]
[1743740054642,1.3866,1788.8,1788.7,1.11855]
[1743740054848,1.87186,1788.9,1788.8,1.11849]
[1743740055144,3.33676,1788.9,1788.8,1.11849]
[1743740055342,3.33676,1788.9,1788.7,2.5668]
[1743740055546,1.11849,1788.8,1788.7,2.5668]
[1743740056844,2.55629,1788.8,1788.7,1.4483]
[1743740058350,2.55629,1788.8,1788.7,2.56685]
[1743740059344,2.55629,1788.8,1788.7,1.4483]
[1743740059648,2.55629,1788.8,1788.7,2.56685]
[1743740060046,1.11849,1788.8,1788.7,2.56685]
[1743740061848,1.11849,1788.8,1788.7,1.4483]
[1743740062848,1.11846,1788.9,1788.8,1.11849]
[1743740063050,1.11849,1788.9,1788.7,2.5668]
[1743740063244,1.11849,1788.9,1788.8,1.11849]
[1743740063450,1.11849,1788.9,1788.8,1.5066]
[1743740063849,10.96022,1789.0,1788.9,1.11843]
[1743740063850,6.692,1789.0,1788.9,1.11843]
[1743740064051,5.968,1789.0,1788.9,1.11843]
[1743740064252,5.968,1789.0,1788.9,8.06023]
[1743740064452,21.70400534,1789.1,1789.0,1.11836]
[1743740064753,21.70400534,1789.1,1789.0,2.62496]
[1743740065655,22.82230534,1789.1,1789.0,2.62496]
[1743740065953,0.00838528,1789.1,1789.0,2.62496]
[1743740068649,1.11836,1789.0,1788.9,4.32621]
[1743740068852,1.82676,1789.0,1788.9,3.734]
[1743740069052,3.23596,1789.0,1788.9,3.734]
[1743740069354,3.23596,1789.0,1788.9,4.85243]
[1743740069554,3.23596,1789.0,1788.9,3.734]
[1743740070553,3.23596,1789.0,1788.9,4.85243]
[1743740070749,3.23596,1789.0,1788.9,3.734]
[1743740071147,2.1176,1789.0,1788.9,4.85243]
[1743740073657,3.23596,1789.0,1788.9,4.85243]
[1743740073849,3.23596,1789.0,1788.9,3.734]
[1743740074054,2.79607,1788.9,1788.5,6.9418]
[1743740074257,2.2748,1788.8,1788.5,6.9418]
[1743740074459,1.11861,1788.6,1788.5,9.46346]
[1743740075155,2.6245,1788.7,1788.5,9.46346]
[1743740075456,1.11861,1788.6,1788.5,9.46346]
[1743740075850,1.11861,1788.6,1788.5,9.46348]
[1743740076053,1.11861,1788.6,1788.5,8.3448]
[1743740076758,1.11861,1788.6,1788.5,3.734]
[1743740076953,1.83221,1788.6,1788.5,3.734]
[1743740077152,1.11868,1788.5,1788.4,5.9718]
[1743740077355,3.32358,1788.5,1788.4,5.9718]
[1743740079362,1.11874,1788.4,1788.3,0.00838528]
[1743740079567,2.55634,1788.4,1788.3,0.00838528]
[1743740080959,2.55634,1788.4,1788.3,1.47158528]
[1743740085162,1.11874,1788.4,1788.3,2.59038528]
[1743740085364,1.11874,1788.4,1788.3,2.22638528]
[1743740086769,1.11874,1788.4,1788.3,3.34518528]
[1743740087364,1.11874,1788.4,1788.3,2.22638528]
[1743740089068,1.11874,1788.4,1788.3,1.47158528]
[1743740089270,2.54944,1788.4,1788.3,1.47158528]
[1743740092579,2.54944,1788.4,1788.3,0.00838528]
[1743740092970,1.11886,1788.2,1788.1,1.81847]
[1743740093476,1.11886,1788.2,1788.1,1.11893]
[1743740093671,2.56736,1788.2,1788.1,1.11893]
[1743740093877,4.08126,1788.2,1788.1,1.11893]
[1743740094176,4.08126,1788.2,1788.1,2.52543]
[1743740094882,4.08126,1788.2,1788.1,1.4065]
[1743740095474,4.08126,1788.2,1788.1,2.52543]
[1743740096169,4.08126,1788.2,1788.1,1.4065]
[1743740098391,3.35506,1788.2,1788.1,1.4065]
[1743740099086,1.84116,1788.2,1788.1,1.4065]
[1743740099282,1.84116,1788.2,1788.1,2.1063]
[1743740099785,1.84116,1788.2,1788.1,3.22523]
[1743740099983,1.84116,1788.2,1788.1,2.1063]
[1743740100482,7.08665,1788.6,1788.4,1.11869]
[1743740100691,1.11865,1788.6,1788.5,2.54468]
[1743740100984,1.11865,1788.6,1788.5,1.426]
[1743740101975,1.11865,1788.6,1788.5,2.951]
[1743740102376,1.11883,1788.3,1788.2,1.11886]
[1743740102581,1.11883,1788.3,1788.2,4.4603]
[1743740102782,1.83698,1788.4,1788.2,5.57915]
[1743740103283,2.2156,1788.5,1788.2,4.4603]
[1743740103586,1.11861,1788.7,1788.3,3.2078]
[1743740103782,1.11863,1788.6,1788.4,0.7068]
[1743740103981,1.11863,1788.6,1788.5,5.1661]
[1743740104591,1.11863,1788.6,1788.5,6.28478]
[1743740104776,2.599,1788.7,1788.5,6.28478]
[1743740104981,2.599,1788.7,1788.6,1.4331]
[1743740105183,1.1186,1788.7,1788.6,3.25761]
[1743740105688,1.1186,1788.7,1788.6,2.139]
[1743740105689,1.11855,1788.7,1788.6,2.139]
[1743740106190,1.4081,1788.8,1788.6,3.25757]
[1743740106384,1.83667,1788.9,1788.7,1.5399]
[1743740106589,1.11849,1788.8,1788.7,3.41711]
[1743740107087,4.6159,1789.0,1788.7,2.2986]
[1743740107286,5.73431,1789.0,1788.8,6.39133]
[1743740107488,5.73431,1789.0,1788.9,1.5399]
[1743740108288,2.52651,1789.0,1788.9,1.5399]
[1743740109582,1.11843,1788.9,1788.8,3.733]
[1743740109782,1.11849,1788.8,1788.7,1.4546]
[1743740110292,2.58519,1788.8,1788.7,2.57315]
[1743740110589,2.58519,1788.8,1788.7,1.4546]
[1743740111479,1.11855,1788.7,1788.6,3.733]
[1743740111686,3.27535,1788.7,1788.6,3.733]
[1743740112884,1.11868,1788.5,1788.4,6.94128]
[1743740113284,1.11868,1788.5,1788.4,5.8226]
[1743740113592,2.57598,1788.5,1788.4,6.94134]
[1743740113785,1.4573,1788.5,1788.4,6.94134]
[1743740113987,1.11868,1788.5,1788.4,5.8226]
[1743740114291,1.11868,1788.5,1788.4,6.94131]
[1743740114490,3.33797,1788.6,1788.5,1.11868]
[1743740114789,3.33797,1788.6,1788.5,1.5394]
[1743740115193,1.88067,1788.6,1788.5,1.5394]
[1743740116191,1.88067,1788.6,1788.5,5.2714]
[1743740116389,3.2078,1788.7,1788.6,1.11861]
[1743740116586,1.11852,1788.8,1788.6,1.11861]
[1743740116587,1.11852,1788.8,1788.6,3.35801]
[1743740116891,1.11855,1788.7,1788.6,3.35801]
[1743740117092,1.11855,1788.7,1788.6,0.7]
[1743740120890,1.11855,1788.8,1788.6,0.7]
[1743740121292,1.11855,1788.8,1788.6,1.81861]
[1743740121484,2.52268,1788.9,1788.7,1.11855]
[1743740121685,2.52268,1788.9,1788.8,0.7056]
[1743740122385,2.52268,1788.9,1788.8,3.732]
[1743740122896,1.11855,1788.7,1788.6,3.732]
[1743740123088,1.11868,1788.5,1788.4,5.03209]
[1743740123295,4.13606,1788.6,1788.4,8.76409]
[1743740123495,1.5394,1788.5,1788.4,8.76409]
[1743740123994,1.478,1788.6,1788.5,1.11868]
[1743740124193,0.7383,1788.6,1788.5,1.11868]
[1743740124394,1.4379,1788.7,1788.4,7.6454]
[1743740124890,0.7171,1788.8,1788.7,1.11855]
[1743740125089,1.11846,1788.9,1788.8,1.11849]
[1743740125289,1.11846,1788.9,1788.8,0.7311]
[1743740125490,1.11846,1788.9,1788.8,1.84959]
[1743740125795,3.27341,1789.0,1788.9,1.11843]
[1743740126288,2.155,1789.0,1788.9,1.11843]
[1743740126693,2.155,1789.0,1788.8,0.7311]
[1743740126694,2.155,1789.0,1788.8,1.84955]
[1743740126881,2.155,1789.0,1788.9,1.11843]
[1743740127086,3.27336,1789.0,1788.9,1.11843]
[1743740127595,1.11843,1788.9,1788.8,1.84954]
[1743740128597,3.27342,1789.0,1788.9,1.11843]
[1743740129389,1.11843,1788.9,1788.8,1.84954]
[1743740129895,2.54343,1788.9,1788.8,1.84954]
[1743740130192,2.54343,1788.9,1788.8,1.84959]
[1743740131495,1.11849,1788.8,1788.7,3.732]
[1743740131696,1.425,1788.8,1788.7,4.85055]
[1743740131891,1.11844,1788.9,1788.8,1.11849]
[1743740132190,1.11844,1788.9,1788.8,1.86309]
[1743740132692,3.26049,1789.0,1788.9,1.11843]
[1743740133288,1.11843,1788.9,1788.8,1.86304]
[1743740133896,3.26052,1789.0,1788.9,1.11843]
[1743740134091,1.11843,1788.9,1788.8,1.86304]
[1743740134389,3.26052,1789.0,1788.9,1.11843]
[1743740134797,1.11843,1788.9,1788.8,1.86305]
[1743740135096,1.11843,1788.9,1788.8,0.7446]
[1743740135286,2.64863,1788.9,1788.8,1.86309]
[1743740136995,2.64863,1788.9,1788.8,2.1794]
[1743740137199,1.11855,1788.7,1788.5,1.11865]
[1743740137393,2.79638,1788.7,1788.4,6.98568]
[1743740137598,2.2464,1788.6,1788.2,3.2078]
[1743740137906,1.11893,1788.1,1788.0,4.85833528]
[1743740138196,1.11893,1788.1,1788.0,3.73938528]
[1743740138604,4.08092,1788.2,1788.0,4.85833528]
[1743740138905,2.63703,1788.1,1788.0,4.85833528]
[1743740139203,1.4439,1788.2,1788.1,1.11893]
[1743740139399,2.56276,1788.2,1788.1,2.58973]
[1743740139605,2.56276,1788.2,1788.1,1.4708]
[1743740142104,5.3786,1788.2,1787.6,3.2078]
[1743740142302,1.11924,1787.6,1787.5,2.1629]
[1743740143203,2.55394,1787.6,1787.5,2.1629]
[1743740143596,1.4347,1787.6,1787.5,2.1629]
[1743740143802,1.4347,1787.6,1787.5,3.2822]
[1743740144002,2.55394,1787.6,1787.5,2.1629]
[1743740144301,1.4347,1787.6,1787.5,3.2822]
[1743740144507,2.55395,1787.6,1787.4,3.73938528]
[1743740145010,1.4347,1787.5,1787.4,6.27394528]